Cogmind - Beta 9.6 @@@ ROGUE MODE // 2020.08.31 @ 23:03:13 Player: Judas Result: Self-destructed Performance ------------- Evolutions (1) 500 Regions Visited (3) 600 Robots Destroyed (24) 120 Value Destroyed (387) 387 Prototype IDs (0) 0 Alien Tech Used (0) 0 Bonus (28) 28 TOTAL SCORE: 1635 Bonus ------- Follower Combat Kills 28 Cogmind --------- Core Integrity 304/400 Matter 269/300 Energy 100/100 System Corruption 6% Temperature Cool (0) Movement Treading (180) Ox1 Location -9/Mines Parts ------- > --- POWER (1) -------- (None) > --- PROPULSION (2) --- Light Treads > --- UTILITY (3) ------ Large Storage Unit Large Storage Unit > --- WEAPON (3) ------- Heavy Assault Rifle > --- INVENTORY (16) --- Light Ion Engine Light Ion Engine Small Storage Unit Small Storage Unit Visual Processing Unit Medium Armor Plating Assault Rifle Light Assault Rifle Light Assault Rifle Light Assault Rifle Light Assault Rifle Grenade Launcher Peak State ------------ > --- POWER ------------ Light Angular Momentum Engine > --- PROPULSION ------- Light Treads Light Treads > --- UTILITY ---------- Large Storage Unit Large Storage Unit Medium Armor Plating > --- WEAPON ----------- Light Assault Rifle Light Assault Rifle Heavy Assault Rifle > --- INVENTORY -------- Ion Engine Light Ion Engine Light Ion Engine Light Treads Small Storage Unit Small Storage Unit Visual Processing Unit Medium Armor Plating Assault Rifle Light Assault Rifle Light Assault Rifle Light Assault Rifle Light Assault Rifle Grenade Launcher [Rating: 16] Favorites ----------- Power Light Ion Engine Engine Light Ion Engine Propulsion Light Treads Treads Light Treads Leg Aluminum Leg Utility Large Storage Unit Device Sensor Array Storage Large Storage Unit Protection Medium Armor Plating Weapon Light Assault Rifle Energy Gun EM Pulse Gun Ballistic Gun Light Assault Rifle Build | -11 -10 -9 -9 ------- Run | Scr Mat Mat Min Slots Evolved 2 | . . 2 . Power . | . . . . Propulsion . | . . . . Utility 1 | . . 1 . Weapon 1 | . . 1 . Parts Attached 24 | . 3 12 9 Power 6 | . 1 1 4 Engine 6 | . 1 1 4 Core . | . . . . Reactor . | . . . . Propulsion 4 | . 1 2 1 Treads 3 | . . 2 1 Leg 1 | . 1 . . Wheel . | . . . . Hover . | . . . . Flight . | . . . . Utility 5 | . 1 4 . Device 1 | . 1 . . Storage 3 | . . 3 . Processor . | . . . . Hackware . | . . . . Protection 1 | . . 1 . Artifact . | . . . . Weapon 9 | . . 5 4 Energy Gun 1 | . . 1 . Energy Cannon . | . . . . Ballistic Gun 8 | . . 4 4 Ballistic Cannon . | . . . . Launcher . | . . . . Special Weapon . | . . . . Impact Weapon . | . . . . Slashing Weapon . | . . . . Piercing Weapon . | . . . . Special Melee Weapon . | . . . . Unidentified Prototypes . | . . . . Parts Lost 9 | . . 2 7 Power 2 | . . . 2 Propulsion 1 | . . . 1 Utility 2 | . . 1 1 Weapon 4 | . . 1 3 Highest Loss Streak 5 | . . 2 5 Average Slot Usage (%) 95 | . 92 91 97 Engine 11 | . 14 11 11 Treads 14 | . . 5 21 Leg 8 | . 28 16 . Device 3 | . 7 9 . Storage 19 | . 14 16 22 Protection 6 | . . . 10 Energy Gun 9 | . 28 20 . Ballistic Gun 22 | . . 11 32 Naked Turns . | . . . . Heaviest Build 53 | 11 12 47 53 Greatest Support 40 | 20 20 40 40 Greatest Overweight (x) 2 | . . 2 2 Average Overweight (x) . | . . . 1 Largest Inventory Capacity 16 | 6 6 16 16 Average Capacity 12 | 6 6 10 16 Most Carried 15 | 5 6 11 15 Average Carried 10 | 4 5 6 12 Final Capacity 16 | 6 6 16 16 Final Carried 12 | 4 6 11 12 Class Distribution -------------------- 30% | Tank 28% | Mutant 24% | Scavenger-Tank 16% | Skirmisher Dominant Class ---------------- Mutant | -10/Materials Skirmisher | -9/Materials Tank | -9/Mines Resources | -11 -10 -9 -9 ----------- Run | Scr Mat Mat Min Matter Collected 509 | 200 30 31 248 Remotely . | . . . . Salvage Created 685 | 75 171 233 206 Parts 48 | 3 16 17 12 Haulers Intercepted 1 | . . 1 . Recyclers Shooed 2 | 1 . 1 . Parts Field Recycled . | . . . . Retrieved Matter . | . . . . Parts Self-Destructed . | . . . . Prevented . | . . . . Kills | -11 -10 -9 -9 ------- Run | Scr Mat Mat Min Combat Hostiles Destroyed 19 | . 5 5 9 Guns 19 | . 5 5 9 Classes Destroyed 7 | 1 3 1 2 Builder 1 | . 1 . . Hauler 1 | . . 1 . Recycler 3 | 1 . 1 1 Swarmer 12 | . 3 3 6 Grunt 4 | . 2 2 . Demolisher 2 | . . . 2 Assembled 1 | . . . 1 Best Kill Streak 3 | 1 3 3 3 Combat Bots Only 3 | . 3 3 3 Max Kills in Single Turn 2 | 1 2 1 1 Gunslinging . | . . . . Exploded . | . . . . Melee . | . . . . Uniques/NPCs Destroyed . | . . . . Combat | -11 -10 -9 -9 -------- Run | Scr Mat Mat Min Damage Taken 1393 | . 218 276 899 Core 136 | . 40 42 54 Absorbed by Shields . | . . . . Core Remaining (%) 92 | 100 84 . . Volleys Fired 73 | 2 23 14 34 Largest 3 | 2 2 3 3 Hottest 125 | 90 90 125 105 Shots Fired 163 | 4 40 35 84 Gun 163 | 4 40 35 84 Cannon . | . . . . Launcher . | . . . . Special . | . . . . Kinetic 97 | . . 14 83 Thermal 34 | 2 17 14 1 Explosive . | . . . . Electromagnetic 32 | 2 23 7 . Robot Hit Streak 8 | 3 5 7 8 Robot Miss Streak 5 | 1 3 5 4 Penetration Max . | . . . . Secondary Targets 5 | . . 2 3 Max Gunslinging Chain 1 | . . 1 1 Shots Hit Robots 96 | 3 22 22 49 Core Hits 48 | 2 8 20 18 Critical Hits 1 | . . . 1 Critical Kills 1 | . . . 1 Critical Parts Destroyed . | . . . . Melee Attacks . | . . . . Impact . | . . . . Slashing . | . . . . Piercing . | . . . . Sneak Attacks . | . . . . Combat Hostiles . | . . . . Follow-up Attacks . | . . . . Damage Inflicted 891 | 25 260 215 391 Guns 891 | 25 260 215 391 Cannons . | . . . . Explosions . | . . . . Melee . | . . . . Ramming . | . . . . Kinetic 403 | . . 29 374 Thermal 249 | 13 87 132 17 Explosive . | . . . . Electromagnetic 239 | 12 173 54 . Impact . | . . . . Slashing . | . . . . Piercing . | . . . . Highest Corruption 6 | . . . 6 Average Corruption 6 | . . . 6 Corruption Purged . | . . . . Effects 3 | . . . 3 Message Errors 2 | . . . 2 Targeting Errors 1 | . . . 1 Overload Shots . | . . . . Overflow Damage . | . . . . Projectiles . | . . . . Explosions . | . . . . Melee . | . . . . Knockbacks . | . . . . Impact . | . . . . Kinetic . | . . . . Secondary . | . . . . Self-Inflicted Damage . | . . . . Shots . | . . . . Rammed . | . . . . Targets Rammed . | . . . . Kicked . | . . . . Crushed . | . . . . Highest Temperature 304 | 60 304 268 92 Average Temperature 87 | 30 123 105 28 Received Heat Transfer 108 | . 78 30 . Effects 2 | . 2 . . Interference 2 | . 2 . . Siege Activations . | . . . . Robots Corrupted . | . . . . Combat Hostiles . | . . . . Parts Fried . | . . . . Impact Corruptions . | . . . . Robots Melted . | . . . . Combat Hostiles . | . . . . Parts Melted 1 | . . 1 . Heat Transferred 486 | 37 259 170 20 Parts Sabotaged . | . . . . Parts Stolen . | . . . . Parts Stripped . | . . . . Power Chain Reactions . | . . . . Missiles Intercepted . | . . . . Alert | -11 -10 -9 -9 ------- Run | Scr Mat Mat Min Peak Influence 210 | 5 173 210 185 Average Influence 102 | 4 76 123 104 Maximum Alert Level 1 | . . 1 . Low Security (%) 97 | 100 100 87 100 Level 1 2 | . . 12 . Level 2 . | . . . . Level 3 . | . . . . Level 4 . | . . . . Level 5 . | . . . . High Security . | . . . . Max Security . | . . . . Squads Dispatched 2 | . 1 1 . Investigation 2 | . 1 1 . Extermination . | . . . . Reinforcement . | . . . . Assault . | . . . . Garrison . | . . . . Intercept . | . . . . Construction Impeded . | . . . . Haulers Reinforced . | . . . . Stealth | -11 -10 -9 -9 --------- Run | Scr Mat Mat Min Distress Signals 1 | . . 1 . Communications Jammed . | . . . . Distress Signals . | . . . . Times Spotted 33 | . 9 9 15 Peak Tracking Total 6 | . 4 6 4 Tactical Retreats 2 | . 1 1 . Traps | -11 -10 -9 -9 ------- Run | Scr Mat Mat Min Traps Triggered . | . . . . Indirectly . | . . . . Trap Hack Attempts . | . . . . Triggered . | . . . . Disarmed . | . . . . Reprogrammed . | . . . . Reused . | . . . . Traps Extracted . | . . . . Installed . | . . . . Triggered . | . . . . Machines | -11 -10 -9 -9 ---------- Run | Scr Mat Mat Min Machines Disabled . | . . . . Max in Single Turn . | . . . . Machines Sabotaged . | . . . . Garrisons Compromised . | . . . . Overloaded Fab Kills . | . . . . Fab Network Shutdowns . | . . . . Hacking | -11 -10 -9 -9 --------- Run | Scr Mat Mat Min Machines Accessed 2 | . 1 1 . Terminals 2 | . 1 1 . Fabricators . | . . . . Repair Stations . | . . . . Recycling Units . | . . . . Scanalyzers . | . . . . Garrison Access . | . . . . Total Hacks 7 | . 3 4 . Successful 2 | . . 2 . Failed 5 | . 3 2 . Catastrophic 1 | . 1 . . Database Lockouts . | . . . . Manual 7 | . 3 4 . Terminals 7 | . 3 4 . Fabricators . | . . . . Repair Stations . | . . . . Recycling Units . | . . . . Scanalyzers . | . . . . Garrison Access . | . . . . Terminal Hacks 1 | . . 1 . Robot Analysis 1 | . . 1 . Fabricator Hacks . | . . . . Repair Station Hacks . | . . . . Recycling Unit Hacks . | . . . . Scanalyzer . | . . . . Garrison Access Hacks . | . . . . Unauthorized Hacks 1 | . . 1 . Terminals 1 | . . 1 . Botnet 1 | . . 1 . Fabricators . | . . . . Repair Stations . | . . . . Recycling Units . | . . . . Scanalyzers . | . . . . Garrison Access . | . . . . Data Cores Recovered . | . . . . Used . | . . . . Hacking Detections 2 | . 1 1 . Full Trace Events 2 | . 1 1 . Feedback Events . | . . . . Feedback Blocked . | . . . . Robot Schematics Acquired . | . . . . Robots Built . | . . . . Matter . | . . . . Time . | . . . . Total Robot Build Rating . | . . . . Part Schematics Acquired . | . . . . Parts Built . | . . . . Matter . | . . . . Time . | . . . . Total Part Build Rating . | . . . . Parts Repaired . | . . . . Time . | . . . . Parts Recycled . | . . . . Recycled Matter . | . . . . Retrieved Matter . | . . . . Retrieved Components . | . . . . Parts Scanalyzed . | . . . . Part Schematics Acquired . | . . . . Parts Damaged . | . . . . Bothacking | -11 -10 -9 -9 ------------ Run | Scr Mat Mat Min Used RIF Installer . | . . . . Robots Hacked . | . . . . Non-combat . | . . . . Combat . | . . . . Robot Hacks Applied . | . . . . Relay Couplers Released . | . . . . Robots Rewired . | . . . . Allies Hacked . | . . . . Hacks Repelled . | . . . . Allies | -11 -10 -9 -9 -------- Run | Scr Mat Mat Min Total Allies 5 | . . . 5 Largest Group 3 | . . . 3 Highest-Rated Group 41 | . . . 41 Highest-Rated Ally 31 | . . . 31 Total Orders . | . . . . Ally Attacks 15 | . . . 15 Total Damage 216 | . . . 216 Kills 4 | . . . 4 Allies Corrupted . | . . . . Allies Melted . | . . . . Intel | -11 -10 -9 -9 ------- Run | Scr Mat Mat Min Robot Analysis Total 1 | . . 1 . Derelict Logs Recovered 2 | . . . 2 Drone Launches . | . . . . Drone Recoveries . | . . . . Exploration | -11 -10 -9 -9 ------------- Run | Scr Mat Mat Min Turns Passed 1329 | 22 228 286 793 Spaces Moved 676 | 13 129 154 380 Core . | . . . . Treads 404 | . . 24 380 Legs 272 | 13 129 130 . Wheels . | . . . . Hover . | . . . . Flight . | . . . . Fastest Speed 120 | 120 120 120 160 Average Speed 157 | 120 120 137 180 Slowest Speed 200 | 120 120 180 200 Overloaded Moves . | . . . . Propulsion Burnouts . | . . . . Robots Hopped . | . . . . Cave-ins Triggered . | . . . . Exploration Rate (%) 32 | 3 32 19 76 Regions Visited 3 Branch Regions 1 Pre-discovered Areas . | . . . . Known Exits Taken . | . . . . Unknown Exits Taken 3 | 1 1 1 . Scrap Searched 1 | . . . 1 Spaces Dug . | . . . . Terrain Destroyed . | . . . . Melee . | . . . . Projectile . | . . . . AOE . | . . . . Actions | -11 -10 -9 -9 --------- Run | Scr Mat Mat Min Total 802 | 16 162 198 426 Wait 17 | . 4 13 . Move 673 | 12 128 153 380 Hop . | . . . . Pick Up 5 | . 2 3 . Fast Attach 6 | . 1 4 1 Attach 5 | . . 3 2 Detach . | . . . . Swap 13 | . 2 5 6 Drop 10 | 2 2 3 3 Fire 73 | 2 23 14 34 Melee . | . . . . Ram . | . . . . Kick . | . . . . Crush . | . . . . Escape Stasis . | . . . . Rewire . | . . . . Trap . | . . . . Miscellaneous . | . . . . Route ------- -11/Scrapyard -10/Materials -9/Materials -9/Mines (discovered 2 exits: [*Mat x2]) History --------- Turn | Location | Event 8 | -11/Scrapyard | Discovered new exit (range 3) 23 | -11/Scrapyard | Entered Materials 226 | -10/Materials | Discovered new exit (range 12) 251 | -10/Materials | Entered another Materials area 251 | -9/Materials | Evolved 2 slots: Utility x1, Weapon x1 433 | -9/Materials | Discovered new exit (range 10) 537 | -9/Materials | Entered Mines 773 | -9/Mines | Discovered new exit (range 11) 1033 | -9/Mines | Learned Materials terminal intel 1076 | -9/Mines | Build established: Tank 1079 | -9/Mines | Learned location of 1 exit from Lower Caves 1097 | -9/Mines | Assembled infested the area 1099 | -9/Mines | Discovered new exit (range 16) 1123 | -9/Mines | Assisted by bots powering up and referring to "LRC-V3" 1330 | -9/Mines | Self-destructed Last Messages --------------- 01292_ Med. Armor Plating destroyed. 01292_ System corrupted by crushing effect (+4). 01292_ System corrupted by crushing effect (+2). 01293_ as-91422 destroyed. 01294_ DI6OQEN:TJMSBVIU|7E#Z X6C7KDDJ SU>67 EV 01296_ Acquired 14 matter. 01305_ Lgt. Assault Rifle destroyed. 01309_ U-05 Engineer builds a Wall. 01312_ System corrupted: Lgt. Assault Rifle targeting data glitched. 01313_ U-05 Engineer lays Concrete. 01317_ Q%&I:S=:G8PS&JK1E:>3IAJYNP>E0 01317_ Lgt. Treads severed. 01318_ U-05 Engineer builds a Wall. 01321_ U-05 Engineer lays Concrete. 01324_ The unstable cave ceiling collapses. 01324_ U-05 Engineer lays Concrete. 01326_ U-05 Engineer builds a Wall. 01327_ Lgt. Assault Rifle destroyed. 01330_ Ion Engine destroyed. 01330_ U-05 Engineer lays Concrete. Map ----- +----------------------------------------------------+ | ? ????# ### ????????????????????? | | ? ????# ## ????????????????????? | | # ?????# ## ????????????????????? | | # #?????# ## #??#####????????????? | | #?????# ## ??? #????????????? | | #????## #### #??????####??? | | #????# # # #####?## #??? | | #?????# # # # #?# #??? | | #??????## #### #?# ##?? | | #????????## ### ##? | | ##???????## % #? | | ####???## * % #? | | #####! %%% # < #### #? | | %== # #####% #? | | ## ## ######% #? | | # # ###### ############## # #? | | # ## #??????????# # ##? | | # ### ##????????#### u ##? | | # #?# ###########??????#### # #? | | # *#?###????????????????# ### #? | | #= #???????????????????## # # ## ##? | | # #???????????????????# " #####?? | | # #??????????????????## #?????? | | # #??????????????????# ## ##?????? | | # #???????????????#### # # ##??????? | | # #??????????????## @ # #???????? | | # #?????????????## a ####???????? | | # #?????????????# #??????????? | | # #?????????????# ## ###??####??? | | # #?????????????# ###### #### ##?? | | # #????????????# ?????### #?? | | # #???????????# ????????## #?? | | #?????????? ?????????### ##?? | | #???????? ????????????## ##??? | | ####??? ?????????????## ##???? | | ##?# ???????????????#####????? | | #?## ????????????????????????? | | ######??## ?????????????????????????? | | ##????????## ##?????????????????????????? | | #??????????###???????????????????????????? | | #????????????????????????????????????????? | | #????????????????????????????????????????? | | #????????????????????????????????????????? | | #????????????????????????????????????????? | | #????????????????????????????????????????? | | ? ????????????????????????????????????????? | | ??????????????????????????????????????????? | | ??????????????????????????????????????????? | | ###???????????????????????????????????????? | | ##??????????????????????????????????????? | +----------------------------------------------------+ Best States ------------- Heat Dissipation 28 Energy Generation 18 Energy Capacity 250 Matter Stores 300 Matter Capacity 300 Sight Range 16 Robot Scan Range 10 Terrain Scan Density 10 Armor Coverage 225 Evasion (%) 40 Recoil Reduction 2 Item Schematics ----------------- None Robot Schematics ------------------ None Fabricated ------------ Nothing Alien Tech Used ----------------- None Achievements -------------- None Challenges ------------ None Game ------ Seed HoverMappingMagmablaster Manual? 0 Play Time 00:11:57 Cumulative 88.5 hours Start 2020.08.31 @ 22:52:26 End 2020.08.31 @ 23:03:13 Sessions 1 Manual Loads 0 Difficulty Rogue Special Mode None Game No. 147 Rogue 142 Adventurer 0 Explorer 5 Win Type - Total 0 Types 0/0/0/0/0/0/0 Lore% 38 Gallery% 55 Achievement% 42 Wizard Run 0 Options --------- ASCII 0 Keyboard 0 Movement Mouse Keybinds 0 Fullscreen 2 Font 18/SmallcapsGlow Map View 76x50 Tactical HUD 1 Map Filters NONE Filters NONE Steam 1 RUN: 58810533-01e9-4392-bf74-fdf21509e471